bitfinex/quotes_SOLUSD_20260304
["timestamp","ask_amount","ask_price","bid_price","bid_amount"]
[1772586154788,11.49927554,86.962,86.93,5.47122898]
[1772586154969,11.49927554,86.962,86.94,5.47122898]
[1772586155279,11.49589171,86.988,86.95,5.47122898]
[1772586155482,5.47122898,86.98,86.94,2.43935531]
[1772586156279,11.49834998,86.969,86.931,11.50337624]
[1772586156488,5.47122898,86.95,86.928,2.60195242]
[1772586156783,5.47122898,86.94,86.904,2.71607311]
[1772586156981,5.47122898,86.95,86.911,2.71607311]
[1772586158490,5.47122898,86.95,86.89,3.69383402]
[1772586158491,5.72413475,87.038,86.94,10.94245796]
[1772586158669,68.81555868,87.19,87.067,6.00177336]
[1772586158670,2.72189049,87.115,87.067,6.00177336]
[1772586158866,2.72189049,87.115,87.09,5.47122898]
[1772586159185,9.71242421,87.162,87.101,0.28432314]
[1772586159494,9.71242421,87.162,87.1,5.47122898]
[1772586159495,11.38980919,87.249,87.14,2.43935531]
[1772586159665,11.38980919,87.249,87.153,3.69383402]
[1772586159666,5.47122898,87.21,87.153,3.69383402]
[1772586159868,5.47122898,87.19,87.14,5.47122898]
[1772586160066,5.47122898,87.19,87.15,5.47122898]
[1772586160290,5.47122898,87.19,87.14,5.47122898]
[1772586160470,5.47122898,87.19,87.15,5.47122898]
[1772586160471,11.46933672,87.189,87.15,5.47122898]
[1772586160671,5.47122898,87.16,87.108,11.47999339]
[1772586160879,5.47122898,87.16,87.12,5.47122898]
[1772586161080,2.56803336,87.179,87.14,5.47122898]
[1772586161386,2.56803336,87.179,87.13,5.47122898]
[1772586161581,2.56803336,87.179,87.14,5.47122898]
[1772586161893,2.56803336,87.179,87.15,5.47122898]
[1772586162393,2.56803336,87.198,87.161,11.47302119]
[1772586162767,2.56803336,87.196,87.15,5.47122898]
[1772586163088,2.56803336,87.196,87.119,45.91400888]
[1772586163089,2.56803336,87.189,87.16,5.47122898]
[1772586163266,2.56803336,87.208,87.17,5.47122898]
[1772586163465,2.56803336,87.208,87.146,2.43935531]
[1772586163466,2.56803336,87.208,87.16,5.47122898]
[1772586164487,2.56803336,87.199,87.16,5.47122898]
[1772586165981,2.56803336,87.199,87.17,5.47122898]
[1772586166391,11.46815293,87.198,87.15,5.47122898]
[1772586166577,2.56803336,87.197,87.15,5.47122898]
[1772586166897,11.46815293,87.198,87.121,67.01692782]
[1772586166898,2.8523565,87.179,87.127,2.43935531]
[1772586167196,2.8523565,87.179,87.121,67.01692782]
[1772586167197,2.56803336,87.169,87.121,67.01692782]
[1772586168193,2.56803336,87.169,87.13,5.47122898]
[1772586168570,2.56803336,87.169,87.14,5.47122898]
[1772586168777,2.38441474,87.207,87.16,5.47122898]
[1772586168982,2.38441474,87.206,87.16,5.47122898]
[1772586170293,2.38441474,87.206,87.17,5.47122898]
[1772586170682,2.38441474,87.204,87.17,5.47122898]
[1772586171893,11.46723238,87.205,87.14,5.47122898]
[1772586171894,2.38441474,87.189,87.14,5.47122898]
[1772586172196,2.38441474,87.189,87.122,72.43852162]
[1772586172197,2.38441474,87.169,87.122,72.43852162]
[1772586172893,2.38441474,87.167,87.13,5.47122898]
[1772586173493,2.38441474,87.167,87.122,72.43852162]
[1772586173681,5.47122898,87.15,87.122,5.65810387]
[1772586173998,131.9291483,87.168,87.09,2.35611394]
[1772586173999,2.38441474,87.139,87.09,7.82734292]
[1772586174482,2.38441474,87.139,87.09,7.77972925]
[1772586174878,2.38441474,87.129,87.064,2.35611394]
[1772586175212,2.38441474,87.109,87.064,2.35611394]
[1772586175385,0.28432314,87.128,87.055,11.48699098]
[1772586175386,2.38441474,87.089,87.055,11.48699098]
[1772586175784,2.38441474,87.105,87.056,2.35611394]
[1772586176089,2.38441474,87.105,87.055,11.48699098]
[1772586176090,2.38441474,87.118,87.071,2.35611394]
[1772586177092,2.38441474,87.116,87.073,2.35611394]
[1772586177993,2.38441474,87.116,87.071,11.48483329]
[1772586177994,2.38441474,87.116,87.081,2.35611394]
[1772586178193,2.38441474,87.116,87.071,11.48483329]
[1772586178589,2.38441474,87.116,87.071,13.84094723]
[1772586179103,2.38441474,87.109,87.071,2.35611394]
[1772586179288,2.38441474,87.089,87.047,11.48803944]
[1772586179488,2.38441474,87.109,87.07,5.42361531]
[1772586180405,40.17677781,87.115,87.07,5.42361531]
[1772586180794,11.47827436,87.122,87.08,5.42361531]
[1772586181193,11.47827436,87.122,87.081,11.48356128]
[1772586181395,11.47827436,87.122,87.09,5.42361531]
[1772586182294,11.47827436,87.122,87.061,0.28432314]
[1772586182295,2.38441474,87.109,87.057,11.48672695]
[1772586182507,45.89403645,87.158,87.057,11.48672695]
[1772586182508,2.38441474,87.146,87.1,5.42361531]
[1772586182684,2.38441474,87.136,87.1,5.42361531]
[1772586182887,11.47751691,87.127,87.1,5.42361531]
[1772586183090,11.47689074,87.132,87.1,5.42361531]
[1772586183316,11.47698521,87.131,87.101,11.48092444]
[1772586183528,57.36156123,87.167,87.101,11.48092444]
[1772586183529,2.38441474,87.155,87.11,5.42361531]
[1772586183807,2.38441474,87.155,87.13,5.42361531]
[1772586184037,11.47394267,87.154,87.13,5.42361531]
[1772586185086,11.47394267,87.154,87.14,5.42361531]
[1772586185599,11.47104707,87.176,87.14,5.42361531]
[1772586185804,2.38441474,87.175,87.14,5.42361531]
[1772586186393,2.38441474,87.175,87.1,5.42361531]
[1772586186394,2.38441474,87.159,87.101,11.48092444]
[1772586186608,2.38441474,87.149,87.11,5.42361531]
[1772586186895,2.38441474,87.149,87.103,2.35611394]
[1772586187202,11.47473263,87.148,87.111,2.35611394]
[1772586187618,11.47473263,87.148,87.12,5.42361531]
[1772586187911,11.47473263,87.148,87.084,45.93239994]
[1772586187912,2.38441474,87.139,87.09,5.42361531]
[1772586188306,2.38441474,87.139,87.1,5.42361531]
[1772586188811,2.38441474,87.139,87.1,7.77972925]
[1772586189593,11.47604948,87.138,87.101,11.48092444]
[1772586189813,2.38441474,87.137,87.101,11.48092444]
[1772586190006,2.38441474,87.137,87.102,2.35611394]
[1772586191209,11.47535655,87.144,87.111,2.35611394]
[1772586191813,2.38441474,87.147,87.111,2.35611394]
[1772586192214,2.38441474,87.147,87.1,7.77972925]
[1772586192515,2.38441474,87.129,87.079,2.35611394]
[1772586192707,28.68683159,87.148,87.07,7.77972925]
[1772586192708,2.38441474,87.109,87.07,7.77972925]
[1772586192913,2.38441474,87.109,87.07,2.35611394]
[1772586193418,2.38441474,87.109,87.071,2.35611394]
[1772586193918,2.38441474,87.109,87.073,2.35611394]
[1772586194219,13.86439342,87.109,87.073,2.35611394]
[1772586194610,2.38441474,87.108,87.073,2.35611394]
[1772586195109,2.38441474,87.108,86.837,30.77600642]
[1772586195110,2.38441474,87.209,87.114,3.69383402]
[1772586195313,11.45576717,87.293,87.227,5.98146274]
[1772586195520,11.45576717,87.293,87.23,3.69383402]
[1772586195521,2.38441474,87.269,87.23,3.69383402]
[1772586195699,57.27845627,87.293,87.24,5.42361531]
[1772586195700,2.38441474,87.272,87.24,5.42361531]
[1772586195903,2.38441474,87.287,87.25,5.42361531]
[1772586196215,2.38441474,87.287,87.26,5.42361531]
[1772586196804,2.38441474,87.287,87.25,5.42361531]
[1772586197719,2.38441474,87.287,87.26,5.42361531]
[1772586198020,2.38441474,87.287,87.227,5.98146274]
[1772586198021,2.38441474,87.279,87.24,5.42361531]
[1772586199050,11.45659097,87.286,87.25,5.42361531]
[1772586199218,11.45567227,87.293,87.27,5.42361531]
[1772586199405,11.45567227,87.293,87.26,5.42361531]
[1772586199609,11.45567227,87.293,87.27,5.42361531]
[1772586199917,11.45567227,87.293,87.26,5.42361531]
[1772586200318,11.74800813,87.294,87.26,5.42361531]
[1772586200319,1e-08,87.294,87.26,5.42361531]
[1772586200526,2.58493623,87.317,87.28,5.42361531]
[1772586200729,2.58493623,87.317,87.29,5.42361531]
[1772586201114,11.45265472,87.316,87.29,5.42361531]
[1772586201429,11.45265472,87.316,87.3,5.42361531]
[1772586201724,11.45265472,87.316,87.29,5.42361531]
[1772586202229,11.45265472,87.316,87.28,2.85275445]
[1772586202230,2.58493623,87.328,87.3,5.42361531]
[1772586202430,2.58493623,87.328,87.31,5.42361531]
[1772586202633,2.58493623,87.315,87.251,2.85275445]
[1772586202927,2.58493623,87.3,87.251,2.85275445]
[1772586203615,2.58493623,87.299,87.251,2.85275445]
[1772586204530,2.58493623,87.297,87.251,2.85275445]
[1772586204825,2.58493623,87.297,87.188,45.87745012]
[1772586204826,2.58493623,87.259,87.201,2.85275445]
[1772586205026,8.00855154,87.23,87.188,2.85275445]
[1772586205206,8.00855154,87.23,87.19,5.42361531]
[1772586205411,2.58493623,87.23,87.19,8.27636976]
[1772586205634,2.58493623,87.229,87.19,2.85275445]
[1772586205830,2.58493623,87.229,87.19,5.42361531]
[1772586206410,11.46420874,87.228,87.191,11.46907364]
[1772586207518,2.58493623,87.227,87.18,8.10195302]
[1772586207718,2.58493623,87.219,87.181,11.47038919]
[1772586207917,2.58493623,87.219,87.171,11.47170503]
[1772586208213,11.46420874,87.228,87.19,8.10195302]
[1772586208414,11.46420874,87.228,87.191,2.85275445]
[1772586208621,11.46381446,87.231,87.2,8.10195302]
[1772586208813,11.46381446,87.231,87.193,2.85275445]
[1772586211021,11.46381446,87.231,87.195,2.85275445]
[1772586211225,2.58493623,87.296,87.221,2.85275445]
[1772586211425,2.58493623,87.269,87.23,8.10195302]
[1772586212428,85.91458943,87.296,87.203,3.69383402]
[1772586212429,8.10195302,87.28,87.24,8.10195302]
[1772586212633,2.58493623,87.279,87.24,8.10195302]
[1772586213332,14.04257733,87.278,87.24,22.41726128]
[1772586213526,14.04257733,87.278,87.24,2.85275445]
[1772586213527,2.58493623,87.277,87.24,2.85275445]
[1772586213731,2.58493623,87.277,87.23,19.56585686]
[1772586213929,40.10174385,87.278,87.23,19.56585686]
[1772586213930,10.68688925,87.27,87.23,19.56585686]
[1772586214226,2.58493623,87.269,87.22,8.10195302]
[1772586214435,40.10174385,87.278,87.216,2.85275445]
[1772586214436,10.68688925,87.26,87.221,11.46512881]
[1772586215237,40.11093538,87.258,87.218,2.85275445]
[1772586215422,11.46026725,87.258,87.221,2.85275445]
[1772586215928,11.45939922,87.265,87.221,2.85275445]
[1772586216132,11.45939922,87.265,87.231,2.85275445]
[1772586216333,14.04365447,87.27,87.231,2.85275445]
[1772586216638,14.04365447,87.27,87.24,8.10195302]
[1772586217123,2.58493623,87.282,87.24,8.10195302]
[1772586217324,11.45711601,87.282,87.242,2.85275445]
[1772586217827,11.45711601,87.282,87.25,8.10195302]
[1772586218030,11.45711601,87.282,87.25,10.95470747]
[1772586218531,11.45711601,87.282,87.251,2.85275445]
[1772586218737,11.45567227,87.293,87.26,8.10195302]
[1772586219035,2.58493623,87.292,87.242,2.85275445]
[1772586219236,2.58493623,87.292,87.25,8.10195302]
[1772586220238,10.68688925,87.29,87.25,8.10195302]
[1772586220439,10.68688925,87.29,87.148,9.43982655]
[1772586220440,2.58493623,87.249,87.189,2.85275445]
[1772586220732,8.10195302,87.26,87.22,8.10195302]
[1772586220932,8.10195302,87.26,87.221,2.85275445]
[1772586220933,2.58493623,87.259,87.221,2.85275445]
[1772586221563,8.10195302,87.29,87.251,2.85275445]
[1772586221720,11.4542289,87.304,87.27,8.10195302]
[1772586222122,2.58493623,87.303,87.27,8.10195302]
[1772586222322,8.10195302,87.31,87.27,8.10195302]
[1772586222323,14.03942753,87.302,87.27,8.10195302]
[1772586222542,2.58493623,87.301,87.261,2.85275445]
[1772586223023,2.58493623,87.289,87.241,2.85275445]
[1772586223242,8.10195302,87.3,87.26,8.10195302]
[1772586223539,2.58493623,87.299,87.251,2.85275445]
[1772586223745,2.58493623,87.299,87.26,8.10195302]
[1772586224424,11.45501615,87.298,87.26,19.56186615]
[1772586224626,2.58493623,87.297,87.26,19.56186615]
[1772586225028,2.58493623,87.297,87.26,8.10195302]
[1772586225241,2.58493623,87.279,87.226,2.85275445]
[1772586225535,8.10195302,87.24,87.205,11.46723238]
[1772586226047,8.10195302,87.25,87.211,2.85275445]
[1772586226422,10.68688925,87.25,87.211,2.85275445]
[1772586227023,2.58493623,87.25,87.213,2.85275445]
[1772586227231,14.03719747,87.319,87.248,2.85275445]
[1772586227439,2.58493623,87.318,87.28,8.10195302]
[1772586228041,2.58493623,87.318,87.29,8.10195302]
[1772586228224,2.58493623,87.318,87.281,2.94509185]
[1772586228540,2.58493623,87.318,87.29,5.39985796]
[1772586228926,11.45252356,87.317,87.291,11.45593474]
[1772586229637,11.45252356,87.317,87.292,2.94509185]
[1772586230834,8.37203746,87.33,87.292,2.94509185]
[1772586230835,11.45094985,87.329,87.292,2.94509185]
[1772586231030,11.45094985,87.329,87.293,11.45567227]
[1772586231230,40.07832449,87.329,87.292,2.94509185]
[1772586231438,2.9721795,87.328,87.292,2.94509185]
[1772586232139,2.9721795,87.328,87.293,11.45567227]
[1772586232337,11.71867787,87.337,87.31,5.39985796]
[1772586232545,11.71867787,87.337,87.31,2.94509185]
[1772586233143,0.2687143,87.337,87.311,2.94509185]
[1772586233352,0.2687143,87.337,87.31,5.39985796]
[1772586233353,11.44931428,87.342,87.32,2.94509185]
[1772586233557,40.07242801,87.342,87.31,2.94509185]
[1772586233853,4.82477569,87.392,87.3,5.39985796]
[1772586233854,2.9721795,87.388,87.331,2.94509185]
[1772586234028,2.9721795,87.379,87.341,2.94509185]
[1772586234228,2.9721795,87.379,87.35,5.39985796]
[1772586234445,2.9721795,87.379,87.341,2.94509185]
[1772586235732,2.9721795,87.377,87.341,2.94509185]
[1772586236568,40.05584929,87.378,87.32,5.39254745]
[1772586236569,2.9721795,87.359,87.32,5.39254745]
[1772586236731,2.9721795,87.359,87.31,5.39254745]
[1772586237043,2.9721795,87.349,87.311,2.94509185]
[1772586238147,2.9721795,87.349,87.276,3.69383402]
[1772586238148,11.44690302,87.36,87.34,5.39254745]
[1772586238334,2.9721795,87.371,87.34,8.3376393]
[1772586238335,11.44557628,87.37,87.34,8.3376393]
[1772586240229,11.44557628,87.37,87.341,2.94509185]
[1772586241846,2.9721795,87.367,87.293,2.94509185]
[1772586242155,2.9721795,87.349,87.25,5.39254745]
[1772586242356,5.39254745,87.35,87.28,5.39254745]
[1772586242357,2.9721795,87.319,87.28,5.39254745]
[1772586242563,2.9721795,87.319,87.27,5.39254745]
[1772586242741,2.9721795,87.319,87.281,2.94509185]
[1772586242944,5.39254745,87.33,87.281,2.94509185]
[1772586243244,2.9721795,87.359,87.311,2.94509185]
[1772586243448,5.39254745,87.36,87.251,223.49314045]
[1772586243449,2.9721795,87.339,87.3,5.39254745]
[1772586243953,11.44976985,87.338,87.301,11.45462251]
[1772586244252,11.44845903,87.348,87.311,2.94509185]
[1772586244462,2.9721795,87.361,87.301,40.09117879]
[1772586244463,11.44701747,87.359,87.321,2.94509185]
[1772586244831,11.44701747,87.359,87.33,5.39254745]
[1772586245232,11.44701747,87.359,87.33,8.3376393]
[1772586245845,11.44701747,87.359,87.331,2.94509185]
[1772586246150,28.61444717,87.369,87.332,14.39564834]
[1772586246736,2.9721795,87.368,87.332,2.94509185]
[1772586247141,2.9721795,87.368,87.332,14.39564834]
[1772586247736,2.9721795,87.368,87.332,2.94509185]
[1772586248338,2.9721795,87.366,87.332,2.94509185]
[1772586250539,40.06180964,87.365,87.332,2.94509185]
[1772586250742,11.44623132,87.365,87.332,14.39563064]
[1772586251575,11.44623132,87.365,87.333,2.94509185]
[1772586251852,40.06180964,87.365,87.333,2.94509185]
[1772586252060,2.9721795,87.359,87.312,2.94509185]
[1772586252254,2.9721795,87.359,87.313,2.94509185]
[1772586252758,2.9721795,87.357,87.321,2.94509185]
[1772586252960,11.44714851,87.358,87.321,2.94509185]
[1772586253157,40.06501979,87.358,87.321,2.94509185]
[1772586253464,2.9721795,87.357,87.321,2.94509185]
[1772586253763,5.39254745,87.35,87.307,2.94509185]
[1772586253966,2.9721795,87.339,87.29,16.84858291]
[1772586254346,2.9721795,87.329,87.29,5.39254745]
[1772586254664,40.07878343,87.328,87.291,2.94509185]
[1772586254863,11.45108098,87.328,87.292,2.94509185]
[1772586255445,11.45108098,87.328,87.291,40.0957716]
[1772586255446,11.45108098,87.328,87.301,2.94509185]
[1772586255643,11.44963876,87.339,87.31,5.39254745]
[1772586256660,11.44963876,87.339,87.311,2.94509185]
[1772586256863,28.62038656,87.351,87.321,2.94509185]
[1772586259172,40.06456116,87.359,87.331,3.12861847]
[1772586259968,2.9866539,87.358,87.321,14.43960449]
[1772586260270,2.9866539,87.358,87.322,2.98760555]
[1772586261167,40.06547843,87.357,87.322,2.98760555]
[1772586261365,40.06547843,87.357,87.323,11.45173665]
[1772586261669,40.06547843,87.357,87.322,2.98760555]
[1772586262368,40.06547843,87.357,87.281,45.82897957]
[1772586262369,2.9866539,87.349,87.269,2.98760555]
[1772586262567,2.9866539,87.339,87.3,5.39254745]
[1772586263162,2.9866539,87.328,87.291,2.98760555]
[1772586264368,11.45094985,87.329,87.301,2.98760555]
[1772586264554,40.07832449,87.329,87.301,2.98760555]
[1772586265472,28.62737464,87.329,87.301,2.98760555]
[1772586266657,2.9866539,87.336,87.301,14.44218553]
[1772586266859,57.23470488,87.36,87.301,14.44218553]
[1772586266860,2.9866539,87.482,87.409,1.20573508]
[1772586267060,45.70655526,87.515,87.408,5.9720119]
[1772586267061,5.39254745,87.47,87.408,5.9720119]
[1772586267270,45.71622448,87.497,87.42,16.83156913]
[1772586267271,2.9866539,87.457,87.42,16.83156913]
[1772586268176,2.9866539,87.439,87.408,5.9720119]
[1772586269177,5.39254745,87.42,87.371,1.22821244]
[1772586269374,11.43922174,87.419,87.373,3.27192869]
[1772586269685,5.39254745,87.5,87.415,2.98760555]
[1772586269874,5.39254745,87.5,87.46,5.39254745]
[1772586270176,11.43125238,87.48,87.45,5.39254745]
[1772586270355,11.4317832,87.476,87.45,5.39254745]
[1772586270961,5.39254745,87.49,87.45,5.39254745]
[1772586271159,45.68754907,87.552,87.46,8.380153]
[1772586271160,5.39254745,87.5,87.46,8.380153]
[1772586271479,2.9866539,87.498,87.452,11.43478535]
[1772586272167,2.9866539,87.469,87.421,2.98760555]
[1772586272374,2.9866539,87.469,87.431,2.98760555]
[1772586272569,2.9866539,87.469,87.42,5.39254745]
[1772586273161,2.9866539,87.469,87.421,2.98760555]
[1772586273882,11.43275254,87.468,87.43,5.39254745]
[1772586274121,11.43204936,87.474,87.44,5.39254745]
[1772586274587,11.43204936,87.474,87.431,2.98760555]
[1772586275091,2.9866539,87.473,87.431,2.98760555]
[1772586275667,2.9866539,87.469,87.431,2.98760555]
[1772586275873,11.43275254,87.468,87.432,11.43745996]
[1772586276073,2.9866539,87.467,87.432,11.43745996]
[1772586276583,2.9866539,87.467,87.431,2.98760555]
[1772586276987,2.9866539,87.467,87.421,11.43889414]
[1772586277892,40.01463391,87.468,87.422,11.43876827]
[1772586277893,11.43405977,87.458,87.422,11.43876827]
[1772586278178,2.9866539,87.457,87.422,11.43876827]
[1772586278760,2.9866539,87.457,87.386,3.69383402]
[1772586278761,2.9866539,87.449,87.398,11.44190942]
[1772586278983,2.9866539,87.439,87.401,2.98760555]
[1772586279187,2.9866539,87.449,87.41,5.39254745]
[1772586279376,2.9866539,87.449,87.41,8.380153]
[1772586279791,2.9866539,87.449,87.401,2.98760555]
[1772586279973,11.4353673,87.448,87.41,5.39254745]
[1772586280171,11.4353673,87.448,87.411,2.98760555]
[1772586281186,40.02378555,87.448,87.411,2.98760555]
[1772586281388,2.9866539,87.447,87.403,2.98760555]
[1772586281612,2.9866539,87.447,87.411,2.98760555]
[1772586282179,11.43562884,87.446,87.411,2.98760555]
[1772586283077,11.43562884,87.446,87.412,11.44007687]
[1772586283271,11.43562884,87.446,87.421,2.98760555]
[1772586283468,11.43392904,87.459,87.421,2.98760555]
[1772586283686,11.43392904,87.459,87.43,5.39254745]
[1772586283886,11.43392904,87.459,87.421,2.98760555]
[1772586284271,11.43392904,87.459,87.431,2.98760555]
[1772586284472,2.9866539,87.458,87.423,2.98760555]
[1772586284668,11.43392904,87.459,87.423,2.98760555]
[1772586284872,11.43392904,87.459,87.411,2.98760555]
[1772586284873,2.9866539,87.458,87.411,2.98760555]
[1772586285185,2.9866539,87.458,87.421,2.98760555]
[1772586285483,11.43353685,87.462,87.431,2.98760555]
[1772586286189,28.57951181,87.476,87.433,2.98760555]
[1772586286376,11.43131494,87.479,87.441,2.98760555]
[1772586286778,11.43000834,87.489,87.441,2.98760555]
[1772586287090,11.43000834,87.489,87.451,2.98760555]
[1772586287488,40.00502919,87.489,87.451,2.98760555]
[1772586288695,3.11238033,87.488,87.451,2.98760555]
[1772586288993,11.43000834,87.489,87.452,3.09159925]
[1772586290105,3.11238033,87.488,87.441,3.09159925]
[1772586290280,3.11238033,87.479,87.442,3.09159925]
[1772586290599,40.01005967,87.478,87.442,3.09159925]
[1772586290898,3.11238033,87.477,87.43,8.4841467]
[1772586291101,3.11238033,87.469,87.421,3.09159925]
[1772586291395,3.11238033,87.449,87.411,3.09159925]
[1772586291592,3.11238033,87.459,87.411,3.09159925]
[1772586292892,11.43405977,87.458,87.421,3.09159925]
[1772586293105,14.5464401,87.458,87.421,3.09159925]
[1772586294107,14.5464401,87.458,87.422,11.43876827]
[1772586294306,14.54408731,87.476,87.431,3.09159925]
[1772586294605,3.11238033,87.469,87.431,3.09159925]
[1772586294815,5.3815623,87.46,87.419,3.09159925]
[1772586295296,40.01097443,87.476,87.43,5.3815623]
[1772586295297,8.49394263,87.47,87.43,5.3815623]
[1772586295508,3.11238033,87.469,87.431,3.09159925]
[1772586296297,3.11238033,87.467,87.432,11.43745996]
[1772586297796,3.11238033,87.467,87.431,3.09159925]
[1772586298509,45.71994472,87.49,87.41,5.3815623]
[1772586298510,3.11238033,87.459,87.41,5.3815623]
[1772586298809,3.11238033,87.449,87.405,3.09159925]
[1772586298993,3.11238033,87.449,87.406,11.44076477]
[1772586299309,3.11238033,87.449,87.407,3.09159925]
[1772586299486,3.11238033,87.449,87.411,3.09159925]
[1772586299803,3.11238033,87.459,87.421,3.09159925]
[1772586300007,40.01554889,87.466,87.406,40.04292022]
[1772586300008,11.43301397,87.466,87.431,3.09159925]
[1772586300307,3.11238033,87.465,87.431,3.09159925]
[1772586300488,11.4332754,87.464,87.432,11.43745996]
[1772586300680,49.39722872,87.521,87.432,11.43745996]
[1772586300681,1e-08,87.513,87.456,0.28432314]
[1772586300885,3.11238033,87.531,87.491,3.09159925]
[1772586301207,8.49394263,87.53,87.491,3.09159925]
[1772586301500,3.11238033,87.529,87.491,3.09159925]
[1772586301702,11.42439336,87.532,87.5,5.3815623]
[1772586301890,11.42439336,87.532,87.501,3.09159925]
[1772586303014,39.98537677,87.532,87.501,3.09159925]
[1772586304991,28.56098341,87.532,87.502,3.09159925]
[1772586305190,11.42347982,87.539,87.502,3.09159925]
[1772586305191,11.42347982,87.539,87.503,3.09159925]
[1772586305394,57.10452361,87.559,87.502,11.42831021]
[1772586305395,3.49784581,87.559,87.502,11.42831021]
[1772586305586,3.49784581,87.558,87.51,5.3815623]
[1772586305818,5.3815623,87.55,87.51,5.3815623]
[1772586306110,3.49784581,87.549,87.51,5.3815623]
[1772586306312,3.49784581,87.549,87.456,45.73703624]
[1772586306313,3.49784581,87.549,87.52,5.3815623]
[1772586306519,11.42087049,87.559,87.52,5.3815623]
[1772586306688,0.1,87.56,87.54,5.3815623]
[1772586306887,0.1,87.56,87.541,11.42321883]
[1772586307497,0.1,87.56,87.541,11.45331572]
[1772586307693,5.3815623,87.59,87.541,11.45331572]
[1772586307694,3.51287535,87.621,87.55,5.3815623]
[1772586307892,3.51287535,87.658,87.61,5.3815623]
[1772586308104,3.51287535,87.673,87.64,5.3815623]
[1772586308303,3.51287535,87.669,87.62,5.3815623]
[1772586308710,3.51287535,87.669,87.64,5.3815623]
[1772586309012,45.59487229,87.73,87.64,5.3815623]
[1772586309013,3.51287535,87.682,87.64,5.3815623]
[1772586309318,3.51287535,87.682,87.585,16.43397546]
[1772586309319,3.51287535,87.649,87.569,0.02926576]
[1772586309507,3.51287535,87.649,87.55,5.3815623]
[1772586309508,3.51287535,87.629,87.59,5.3815623]
[1772586309818,222.39202581,87.683,87.56,5.3815623]
[1772586309819,3.51287535,87.6,87.56,5.3815623]
[1772586310004,3.51287535,87.623,87.58,5.3815623]
[1772586310315,5.3815623,87.65,87.57,5.3815623]
[1772586310316,3.51287535,87.609,87.57,5.3815623]
[1772586310906,11.41448269,87.608,87.58,5.3815623]
[1772586311107,3.51287535,87.589,87.53,5.3815623]
[1772586311320,3.51287535,87.579,87.54,5.3815623]
[1772586311642,3.51287535,87.579,87.53,5.3815623]
[1772586311819,3.51287535,87.579,87.54,5.3815623]
[1772586312119,3.51287535,87.579,87.53,5.3815623]
[1772586312995,3.51287535,87.549,87.51,5.3815623]
[1772586313193,3.51287535,87.549,87.5,5.3815623]
[1772586313596,3.51287535,87.549,87.51,5.3815623]
[1772586314391,3.51287535,87.539,87.49,5.3815623]
[1772586314591,3.51287535,87.529,87.48,5.3815623]
[1772586315115,3.51287535,87.529,87.478,11.43144562]
[1772586315116,11.42491545,87.528,87.491,11.42974705]
[1772586315519,14.9377908,87.528,87.491,11.42974705]
[1772586315722,3.51287535,87.528,87.491,11.42974705]
[1772586316103,3.51287535,87.528,87.49,5.3815623]
[1772586317719,3.51287535,87.526,87.49,16.81134915]
[1772586317913,11.42374081,87.537,87.5,5.3815623]
[1772586318112,3.51287535,87.536,87.5,5.3815623]
[1772586318321,3.51287535,87.536,87.49,16.81134915]
[1772586318520,28.56196232,87.643,87.49,16.81134915]
[1772586318521,3.51287535,87.566,87.517,0.16659422]
[1772586318720,3.51287535,87.566,87.512,0.28432314]
[1772586318721,3.51287535,87.588,87.55,5.3815623]
[1772586318926,3.51287535,87.588,87.54,5.3815623]
[1772586319605,3.51287535,87.588,87.528,0.16659422]
[1772586319606,3.51287535,87.588,87.55,5.3815623]
[1772586319806,3.51287535,87.586,87.551,11.42191408]
[1772586321626,3.51287535,87.586,87.55,5.3815623]
[1772586321827,3.51287535,87.584,87.55,5.3815623]
[1772586322027,3.51287535,87.584,87.551,11.42191408]
[1772586322323,11.41688106,87.59,87.56,5.3815623]
[1772586322516,3.51287535,87.595,87.56,5.3815623]
[1772586323332,3.51287535,87.612,87.562,0.22934407]
[1772586323511,11.41409183,87.611,87.562,0.22934407]
[1772586323709,11.41409183,87.611,87.58,5.3815623]
[1772586323910,3.51287535,87.612,87.581,11.41800162]
[1772586324109,11.41344838,87.616,87.59,5.3815623]
[1772586324313,43.45992489,87.616,87.57,5.3815623]
[1772586324922,5.3815623,87.61,87.57,5.3815623]
[1772586325223,43.45992489,87.616,87.57,5.3815623]
[1772586325425,5.3815623,87.61,87.57,5.3815623]
[1772586325825,11.4143524,87.609,87.57,5.3815623]
[1772586326027,5.3815623,87.59,87.53,0.26522531]
[1772586326227,5.3815623,87.57,87.53,5.3815623]
[1772586326410,5.3815623,87.57,87.52,5.3815623]
[1772586327033,5.3815623,87.57,87.53,5.3815623]
[1772586327229,5.3815623,87.58,87.54,5.3815623]
[1772586327536,5.3815623,87.59,87.54,5.3815623]
[1772586328037,39.95935562,87.589,87.541,11.42321883]
[1772586328334,39.95935562,87.589,87.475,11.43183766]
[1772586328335,10.7631246,87.55,87.475,11.43183766]
[1772586328541,5.3815623,87.52,87.48,5.3815623]
[1772586329438,5.3815623,87.52,87.476,0.29999662]
[1772586329439,3.51287535,87.519,87.476,0.29999662]
[1772586329817,3.51287535,87.519,87.48,5.3815623]
[1772586331034,39.99177311,87.518,87.48,5.3815623]
[1772586331328,39.99177311,87.518,87.455,3.69383402]
[1772586331329,3.51287535,87.489,87.44,0.33369199]
[1772586331529,3.51287535,87.489,87.44,5.71525429]